{"text_format":"1","workbook":"xlsx","n_sheets":10,"sheets":["Instructivo","DEMANDA ANUAL","VOLUMEN DE QUEJAS","COSTO ADMINISTRACIÓN PÚBLICA","RESUMEN DE COSTOS AP","AUXILIAR COSTO ADMINISTRACIÓN","TIEMPO DE RESPUESTA","CANAL ATENCIÓN","RESUMEN","MATRIZ PROPIA"],"not_rendered":{"charts":0,"images":7,"macros":1,"external_links":0,"defined_names":6,"comments":5,"pivot_tables":0},"unopened":[],"bounds":{"document_bytes":16777216,"sheet_cells":100000,"rows_first":2000,"rows_last":500,"rows_between":2000,"halvings":0,"cell_chars":16384,"cell_head_chars":4096},"cells_cut":0,"cells_raw":0,"read":"whole","date_system":"1900"}

{"sheet":"Instructivo","index":0,"n_rows":70,"n_cols":1,"rows_kept":70,"cut":false,"hidden":false,"merged":[]}
["CRITERIO DE PRIORIZACIÓN DE TRÁMITES ADMINISTRATIVOS"]
["Instructivo"]
["Consideraciones generales"]
[]
["En las hojas “COSTO DE ADMINISTRACIÓN PÚBLICA”y “RESUMEN”  para añadir más trámites y que apliquen las fórmulas, se deberá seleccionar la primera fila y copiarla una por cada trámite de la entidad"]
[]
["Todas las hojas tienen columnas de color celeste, en las cuales NO deben ingresar valores ya que contienen fórmulas."]
["Para la carga en GOB.EC. La institución debe recordar que el peso máximo del archivo es de 2 MB."]
["Esquema de puntuación"]
["Para priorizar un trámite, se realizará un análisis de criterios básicos y adicionales basado en información que disponen las instituciones sujetas a esta norma técnica. Cada criterio será puntuado según los lineamientos presentes en esta norma."]
["a) Demanda Anual"]
["Considerará el volumen o frecuencia de las solicitudes que ingresan al año a cada institución para la gestión de un trámite en particular."]
["La identificación del volumen anual de los trámites se realizará a través de sus registros de transacciones y/o el número de visitas de consulta de información realizadas a través de páginas web institucionales."]
["Para realizar el registro realice lo siguiente:"]
["1.- Seleccione la hoja DEMANDA ANUAL"]
["2.- Ingrese los trámites de la institución registrando el identificador y nombre en las columnas respectivas.  "]
["3.- Para cada trámite debe especificar en la columna DEMANDA ANUAL el volumen o frecuencia anual, de acuerdo a lo mencionado anteriormente."]
["4.- Una vez terminado el llenado solicitado presione el botón PUNTUACIÓN, se ordenara de menor a mayor. "]
["5.- Usted visualizará el ordenamiento de los trámites ingresados de acuerdo al número de  volumen o frecuencia anual."]
["6.- Así mismo, usted visualizará el puntaje obtenido en la columna PUNTUACIÓN de acuerdo al grupo obtenido por cada trámite de acuerdo al número de volumen o frecuencia anual cosiderando lo siguiente: ** Primer grupo (trámites con menor demanda no incluye los trámites con demanda 0 ) = 3\n** Segundo grupo (trámites con demanda intermedia) = 6\n** Tercer grupo (trámites con mayor demanda) = 10"]
["Cada vez que requiera actualizar el puntaje presionando el botón puntuación, debe verificar que la celda de la columna puntaje se encuentren vacías, es decir, se debe borrar cualquier valor de puntaje obtenido previamente."]
["b) Volumen de quejas asociadas a un trámite: "]
["Considerará la cantidad de quejas recibidas en relación a un trámite durante un año. Estas quejas deberán estar documentadas en medios físicos y/o digitales."]
["Para determinar la puntuación, se colocará en una tabla todos los trámites con sus correspondientes quejas ordenándose de menor a mayor. Se dividirá en 2 partes en los que cada grupo contenga la misma cantidad de trámites."]
["Para realizar el registro realice lo siguiente:"]
["1.- Seleccione la hoja VOLUMEN DE QUEJAS"]
["2.- Ingrese los trámites de la institución registrando el identificador y nombre en las columnas respectivas.  Si usted requiere de acuerdo al número de trámites copie filas adicionales que estén dentro del cuadro"]
["3.- Para cada trámite debe especificar en la columna VOLUMEN QUEJAS el número de quejas anual, de acuerdo a lo mencionado anteriormente."]
["4.- Una vez terminado el llenado solicitado presione el botón PUNTUACIÓN."]
["5.- Usted visualizará el ordenamiento de los trámites ingresados de acuerdo al número de  volumen o frecuencia anual."]
["6.- Así mismo, usted visualizará el puntaje obtenido en la columna PUNTUACIÓN de acuerdo al grupo obtenido por cada trámite de acuerdo al número de volumen o frecuencia anual cosiderando lo siguiente: La puntuación se basará en los siguientes grupos:\n** Primer grupo (trámites con menor cantidad de quejas, no incluye los trámites con queja 0 ) = 4\n** Segundo grupo (trámites con mayor porcentaje de quejas) = 10"]
["El valor del volumen de quejas no debe ser superior al valor del volumen de la demana, no le permitirá registrar un valor."]
["c) Costo para la administración pública: "]
["En cada trámite, basado en un caso estándar, se deberá estimar el costo incurrido en el costo de personal y recursos necesarios para su atención desde que el administrado entregó todos los requisitos hasta que la institución entregue el producto, respuesta o servicio requerido en el trámite. Se considerará:"]
["• Costo de personal:"]
["Costo del personal para atender el trámite, se excluyen actividades realizadas automáticamente o que dependen del administrado. El tiempo deberá considerar únicamente el tiempo efectivo de trabajo del personal, no debe considerar el tiempo de espera o de movimiento."]
["• Costo de recursos:"]
["Se deberá considerar el costo directo en el que la institución debe incurrir para atender un trámite. Se debe considerar los insumos o materia prima necesaria u cualquier otro que la institución considere pertinente."]
["Para realizar el registro realice lo siguiente:"]
["1.- Seleccione la hoja COSTO ADMINISTRACIÓN PÚBLICA"]
["2.- Ingrese los trámites de la institución registrando el identificador y nombre en las columnas respectivas.  Si usted requiere de acuerdo al número de trámites copie filas adicionales que estén dentro del cuadro"]
["3.- Para calcular el tiempo de las actividades, utilizar la hoja AUXILIAR COSTO ADMINISTRACIÓN donde deberá listar todas las actividades que realiza la institución en un caso estándar y asignar el tiempo mínimo que toma cada actvidad (en horas). El tiempo total de las actividades, deberá ingresar en la correspondiente celda de la hoja COSTO ADMINISTRACIÓN PÚBLICA"]
["4.- En función de la información registrada en el paso 3, la matriz entregará el costo del personal"]
["5.- Completar la columna \"Costo recursos\", en la cual ingresará el costo directo en el que incurre la institución para entregar el trámite. En este valor se considerarán los valores correspondientes a insumos y/o materia prima mínimos que se invierten por cada trámite (no se considera mano de obra)"]
["6.- La columna \"Costo para la adm. pública\" mostrará el costto de este criterio para cada trámite"]
["7,- Para que la fórmula funcione debe arrastrar hacia abajo al último de los támites ingresados, no copiar"]
["7.- Una vez que disponga del Costo para la administración pública, presionar el botón \"GENERAR\"."]
["8. Visualizar la hoja “RESUMEN DE COSTO AP” en la que va a encontrar copiada las celdas necesarias para el ordenamiento y puntuación de las mismas al presionar el botón “PUNTUACIÓN”"]
[]
["d) Tiempo de respuesta: "]
["Considerará los tiempos que a las instituciones les toma dar respuesta a un trámite desde que reciben la solicitud del administrado hasta la finalización del mismo. Para la definición del tiempo se considerará un caso estándar."]
["Para determinar la puntuación, se colocará en una tabla todos los trámites con el tiempo de respuesta, ordenándose de menor a mayor. Se dividirá en 4 grupos, en los que cada uno contenga la misma cantidad de trámites."]
["Para realizar el registro realice lo siguiente:"]
["1.- Seleccione la hoja TIEMPO DE RESPUESTA"]
["2.- Ingrese los trámites de la institución registrando el identificador y nombre en las columnas respectivas.  Si usted requiere de acuerdo al número de trámites copie filas adicionales que estén dentro del cuadro"]
["3.- Para cada trámite debe especificar en la columna TIEMPO RESPUESTA el tiempo, de acuerdo a lo mencionado anteriormente."]
["4.- Una vez terminado el llenado solicitado presione el botón PUNTUACIÓN."]
["5.- Usted visualizará el ordenamiento de los trámites ingresados de acuerdo al número de  volumen o frecuencia anual."]
["6.- Así mismo, usted visualizará el puntaje obtenido en la columna PUNTUACIÓN de acuerdo al grupo obtenido por cada trámite de acuerdo al número de volumen o frecuencia anual cosiderando lo siguiente:  La puntuación considera lo siguiente:\n** Primer grupo (menor o igual a 40 horas laboralres) = 0\n** Segundo grupo mayor  40 horas laboralres) = 30"]
["e) Canal de atención: "]
["Considerará los canales de atención a través de los cuales el administrado puede iniciar el trámite."]
["Para realizar el registro realice lo siguiente:"]
["1.- Seleccione la hoja CANAL ATENCIÓN"]
["2.- Ingrese los trámites de la institución registrando el identificador y nombre en las columnas respectivas.  Si usted requiere de acuerdo al número de trámites copie filas adicionales que estén dentro del cuadro"]
["3.- Para cada trámite debe seleccionar el canal de atención del trámite en la columna CANAL ATENCIÓN, que pueden ser: \nEl trámite se puede completar totalmente en línea: Se considera trámite totalmente en línea cuando el administrado no requiere realizar ninguna interacción presencial con la institución = 0\nEl trámite no se puede completar totalmente en línea: Se considera este caso, cuando el trámite incluye al menos una actividad, incluido mecanismos de pago, en la que el administrado deba acudir presencialmente a la institución, para la realización de dicho trámite. Los trámites presenciales se consideran dentro de esta categoría = 10"]
["4.- De acuerdo a la selección usted obtendrá la puntuación del trámite que se visualizará en la columna PUNTUACIÓN."]
[]
["f) Resumen"]
["En esta hoja deberá consolidar todas las puntuaciones obtenidas para cada trámite en los criterios a) hasta e). Adicionalmente deberá analizar los criterios adicionales que dispone la norma técnica, para estos últimos solamente deberá seleccionar en la celda correspondiente y la matriz asignará la puntuación adicional. Los criterios que deberá considerar son:\n- NECESIDADES CIUDADANAS: Si la institución ha implementado mecanismos para identificar necesidades ciudadanas respecto al trámite, seleccionar \"SI\", caso contrario, seleccionar \"NO\"\n- SUSCEPTIBILIDAD A CORRUPCIÓN: Si la institución dispone de información documentada sobre presuntos actos de corrupción, seleccionar \"SI\", caso contrario, seleccionar \"NO\"\n- VOLUMEN DE DEVOLUCIONES: Si la institución posee documentación sobre devoluciones del trámite en una cantidad significativa, seleccionar \"SI\", caso contrario, seleccionar \"NO\"\nPara que funcione la lista depelgable debe arrastrar la lista y la puntuación hacia abajo al último de los támites ingresados, no copiar"]
["En la columna puntaje total se realizará la sumatoria de los valores de los criterios básicos y adicionales. Este valor deberá registrarse en la plataforma GOB.EC"]

{"sheet":"DEMANDA ANUAL","index":1,"n_rows":57,"n_cols":4,"rows_kept":57,"cut":false,"hidden":false,"merged":[[0,0,0,3],[1,0,1,3]]}
["PRIORIZACIÓN DE TRÁMITES ADMINISTRATIVOS"]
["DEMANDA ANUAL"]
[]
["IDENTIFICADOR","TRÁMITE","DEMANDA ANUAL","PUNTAJE"]
["MINEDUC-010-01-01","Aceptación de Tercera Matrícula\t",307,6]
["MINEDUC-016-01-01 ","Apelaciones en última instancia para revisión de notas y exámenes\t",108,3]
["MINEDUC-027-01-01","Aplicación de Exámenes de ubicación para acceder al sistema educativo nacional",7863,10]
["MINEDUC-025-03-01 ","Aprobación de reformas  estatutarias de organizaciones sociales con fines y objetivos educativos",0,0]
["MINEDUC-008-03-01 ","Aprobación para la ejecución de investigaciones en el sistema nacional de educación\t",34,3]
["MINEDUC-004-03-08","Autorización de creación y funcionamiento de una extensión educativa para instituciones educativas fiscomisionales",0,0]
["MINEDUC-004-03-07 ","Autorización de creación y funcionamiento de una extensión educativa para instituciones educativas particulares",0,0]
["MINEDUC-004-03-06 ","Autorización de creación y funcionamiento, ampliación del servicio de centros de desarrollo integral para la primera infancia fiscomisionales",0,0]
["MINEDUC-004-03-05","Autorización de creación y funcionamiento, ampliación del servicio de centros de desarrollo integral para la primera infancia particulares",0,0]
["MINEDUC-004-03-04","Autorización de creación y funcionamiento, ampliación del servicio, cambio de domicilio de instituciones educativas fiscomisionales",189,3]
["MINEDUC-004-03-03 ","Autorización de creación y funcionamiento, ampliación del servicio, cambio de domicilio de instituciones educativas particulares",566,6]
["MINEDUC-004-05-01 ","Cambio de denominación de las Instituciones Educativas",155,3]
["MINEDUC-031-01-01 ","Cambio de Sostenimiento de Institución Particular a Fiscomisional",0,0]
["MINEDUC-031-01-02 ","Cambio de Sostenimiento de Institución Particular o Fiscomisional a Fiscal ",0,0]
["MINEDUC-036-01-01 ","Capacitación en gestión de riesgos",0,0]
["MINEDUC-023-01-01 ","Certificación de promoción de Instituciones Educativas desaparecidas\t",7947,10]
["MINEDUC-004-03-01 ","Cierre voluntario de funcionamiento de Instituciones Educativas Particulares y fiscomisionales ",157,3]
["MINEDUC-025-01-01 ","Concesión de Personalidad Jurídica y aprobación de estatuto de organizaciones sociales con fines y objetivos educativos",51,3]
["MINEDUC-022-01-01","Consulta en línea de calificaciones parciales, quimestrales y finales de Instituciones Educativas Fiscales\t",0,0]
["MINEDUC-024-01-01 ","Consultas del certificado de Título de Bachiller\t",0,0]
["MINEDUC-013-01-01 ","Copia certificada de actas de grado de estudiantes de Instituciones educativas desaparecidas\t",0,0]
["MINEDUC-033-01-01","Denuncias por connotación sexual, psicológica, física y otras relacionadas en los establecimientos educativos del país",2734,10]
["MINEDUC-025-05-01","Disolución voluntaria de organizaciones sociales con fines y objetivos educativos",402,6]
["MINEDUC-019-01-02 ","Emisión del Duplicado de Títulos de Instituciones Educativas desaparecidas\t",295,6]
["MINEDUC-019-01-01","Emisión del Duplicado de Títulos\t",1973,10]
["MINEDUC-028-01-02","Homologación de títulos bachiller obtenidos en el exterior\t",1934,6]
["MINEDUC-025-02-02 ","Inclusión y exclusión de miembros de organizaciones sociales con fines y objetivos educativos",0,0]
["MINEDUC-005-02-02 ","Inscripción a la oferta educativa extraordinaria básica elemental alfabetización modalidad semi presencial para población de 15 años en adelante",238,6]
["MINEDUC-005-02-01","Inscripción a la oferta educativa extraordinaria básica media postalfabetización modalidad semi presencial para población de 15 años en adelante\t",1973,10]
["MINEDUC-005-01-01 ","Inscripción al sistema educativo fiscal",3258,10]
["MINEDUC-005-01-02 ","Inscripción al sistema educativo fiscal a niñas, niños y adolescentes con necesidades educativas especiales asociadas a la discapacidad\t",64,3]
["MINEDUC-013-01-02","Legalización de Actas de Grado",3780,10]
["MINEDUC-023-03-01","Legalización de certificación de cuadros quimestrales finales para estudiantes de Instituciones Educativas fiscales\t",2003,10]
["MINEDUC-032-01-01","Legalización de documentos para el exterior\t",6923,10]
["MINEDUC-012-01-02","Legalización de promociones de estudiantes de las Instituciones Educativas particulares, fiscomisionales y municipales",1445,6]
["MINEDUC-015-03-01 ","Matrícula posterior al inicio del año lectivo para estudiantes nacionales y extranjeros\t",1064,6]
["MINEDUC-015-01-04 ","Pase o transferencia de estudiantes entre instituciones educativas fiscales",42,3]
["MINEDUC-015-01-01","Pase o transferencia para niños, niñas y adolescentes con necesidades educativas especiales asociadas a la discapacidad entre instituciones educativas fiscales especializadas",260,6]
["MINEDUC-023-02-01","Promoción de estudiantes de instituciones educativas fiscales\t",0,0]
["MINEDUC-030-01-01 ","Proyectos de innovación curricular educativa",317,6]
["MINEDUC-025-04-01 ","Reactivación de organizaciones sociales con fines y objetivos educativos",0,0]
["MINEDUC-028-01-01 ","Reconocimiento de estudios realizados en el exterior\t",4547,10]
["MINEDUC-018-01-01","Rectificación de datos personales en documentos estudiantiles\t",2514,10]
["MINEDUC-025-02-01","Registro de directivas de organizaciones sociales sin fines de lucro con fines y objetivos educativos",700,6]
["MINEDUC-009-01-02","Registro de eventos estudiantiles organizados por las Instituciones Educativas\t",6,3]
["MINEDUC-009-01-01","Registro de excursiones o giras de observación internacional\t",0,0]
["MINEDUC-009-01-03 ","Registro de giras y excursiones para instituciones educativas en territorio nacional\t",0,0]
["MINEDUC-004-03-09 ","Renovación de autorización de funcionamiento de instituciones educativas fiscomisionales ",13,3]
["MINEDUC-004-03-11 ","Renovación de autorización de funcionamiento de instituciones educativas fiscomisionales extraordinarias ",0,0]
["MINEDUC-004-03-10 ","Renovación de autorización de funcionamiento de instituciones educativas particulares ",70,3]
["MINEDUC-004-03-12","Renovación de autorización de funcionamiento de instituciones educativas particulares extraordinarias ",0,0]
["MINEDUC-004-03-14 ","Renovación de autorización de funcionamiento de las instituciones fiscomisionales con menos de 120 estudiantes",0,0]
["MINEDUC-004-03-13 ","Renovación de autorización de funcionamiento de las instituciones particulares con menos de 120 estudiantes",0,0]

{"sheet":"VOLUMEN DE QUEJAS","index":2,"n_rows":57,"n_cols":6,"rows_kept":57,"cut":false,"hidden":false,"merged":[[0,0,0,5],[1,0,1,5]]}
["PRIORIZACIÓN DE TRÁMITES ADMINISTRATIVOS"]
["VOLUMEN DE QUEJAS"]
[]
["IDENTIFICADOR","TRÁMITE","VOLUMEN DEMANDA","VOLUMEN DE QUEJAS","PORCENTAJE","PUNTUACIÓN"]
["MINEDUC-010-01-01","Aceptación de Tercera Matrícula\t",307,0,0,0]
["MINEDUC-016-01-01 ","Apelaciones en última instancia para revisión de notas y exámenes\t",108,0,0,0]
["MINEDUC-027-01-01","Aplicación de Exámenes de ubicación para acceder al sistema educativo nacional",7863,0,0,0]
["MINEDUC-025-03-01 ","Aprobación de reformas  estatutarias de organizaciones sociales con fines y objetivos educativos",0,0,0,0]
["MINEDUC-008-03-01 ","Aprobación para la ejecución de investigaciones en el sistema nacional de educación\t",34,0,0,0]
["MINEDUC-004-03-08","Autorización de creación y funcionamiento de una extensión educativa para instituciones educativas fiscomisionales",0,0,0,0]
["MINEDUC-004-03-07 ","Autorización de creación y funcionamiento de una extensión educativa para instituciones educativas particulares",0,0,0,0]
["MINEDUC-004-03-06 ","Autorización de creación y funcionamiento, ampliación del servicio de centros de desarrollo integral para la primera infancia fiscomisionales",0,0,0,0]
["MINEDUC-004-03-05","Autorización de creación y funcionamiento, ampliación del servicio de centros de desarrollo integral para la primera infancia particulares",0,0,0,0]
["MINEDUC-004-03-04","Autorización de creación y funcionamiento, ampliación del servicio, cambio de domicilio de instituciones educativas fiscomisionales",189,0,0,0]
["MINEDUC-004-03-03 ","Autorización de creación y funcionamiento, ampliación del servicio, cambio de domicilio de instituciones educativas particulares",566,0,0,0]
["MINEDUC-004-05-01 ","Cambio de denominación de las Instituciones Educativas",155,0,0,0]
["MINEDUC-031-01-01 ","Cambio de Sostenimiento de Institución Particular a Fiscomisional",0,0,0,0]
["MINEDUC-031-01-02 ","Cambio de Sostenimiento de Institución Particular o Fiscomisional a Fiscal ",0,0,0,0]
["MINEDUC-036-01-01 ","Capacitación en gestión de riesgos",0,0,0,0]
["MINEDUC-023-01-01 ","Certificación de promoción de Instituciones Educativas desaparecidas\t",7947,0,0,0]
["MINEDUC-004-03-01 ","Cierre voluntario de funcionamiento de Instituciones Educativas Particulares y fiscomisionales ",157,0,0,0]
["MINEDUC-025-01-01 ","Concesión de Personalidad Jurídica y aprobación de estatuto de organizaciones sociales con fines y objetivos educativos",51,0,0,0]
["MINEDUC-022-01-01","Consulta en línea de calificaciones parciales, quimestrales y finales de Instituciones Educativas Fiscales\t",0,0,0,0]
["MINEDUC-024-01-01 ","Consultas del certificado de Título de Bachiller\t",0,0,0,0]
["MINEDUC-013-01-01 ","Copia certificada de actas de grado de estudiantes de Instituciones educativas desaparecidas\t",0,0,0,0]
["MINEDUC-033-01-01","Denuncias por connotación sexual, psicológica, física y otras relacionadas en los establecimientos educativos del país",2734,0,0,0]
["MINEDUC-025-05-01","Disolución voluntaria de organizaciones sociales con fines y objetivos educativos",402,0,0,0]
["MINEDUC-019-01-02 ","Emisión del Duplicado de Títulos de Instituciones Educativas desaparecidas\t",295,0,0,0]
["MINEDUC-019-01-01","Emisión del Duplicado de Títulos\t",1973,0,0,0]
["MINEDUC-028-01-02","Homologación de títulos bachiller obtenidos en el exterior\t",1934,0,0,0]
["MINEDUC-025-02-02 ","Inclusión y exclusión de miembros de organizaciones sociales con fines y objetivos educativos",0,0,0,0]
["MINEDUC-005-02-02 ","Inscripción a la oferta educativa extraordinaria básica elemental alfabetización modalidad semi presencial para población de 15 años en adelante",238,0,0,0]
["MINEDUC-005-02-01","Inscripción a la oferta educativa extraordinaria básica media postalfabetización modalidad semi presencial para población de 15 años en adelante\t",1973,0,0,0]
["MINEDUC-005-01-01 ","Inscripción al sistema educativo fiscal",3258,0,0,0]
["MINEDUC-005-01-02 ","Inscripción al sistema educativo fiscal a niñas, niños y adolescentes con necesidades educativas especiales asociadas a la discapacidad\t",64,0,0,0]
["MINEDUC-013-01-02","Legalización de Actas de Grado",3780,0,0,0]
["MINEDUC-023-03-01","Legalización de certificación de cuadros quimestrales finales para estudiantes de Instituciones Educativas fiscales\t",2003,0,0,0]
["MINEDUC-032-01-01","Legalización de documentos para el exterior\t",6923,0,0,0]
["MINEDUC-012-01-02","Legalización de promociones de estudiantes de las Instituciones Educativas particulares, fiscomisionales y municipales",1445,0,0,0]
["MINEDUC-015-03-01 ","Matrícula posterior al inicio del año lectivo para estudiantes nacionales y extranjeros\t",1064,0,0,0]
["MINEDUC-015-01-04 ","Pase o transferencia de estudiantes entre instituciones educativas fiscales",42,0,0,0]
["MINEDUC-015-01-01","Pase o transferencia para niños, niñas y adolescentes con necesidades educativas especiales asociadas a la discapacidad entre instituciones educativas fiscales especializadas",260,0,0,0]
["MINEDUC-023-02-01","Promoción de estudiantes de instituciones educativas fiscales\t",0,0,0,0]
["MINEDUC-030-01-01 ","Proyectos de innovación curricular educativa",317,0,0,0]
["MINEDUC-025-04-01 ","Reactivación de organizaciones sociales con fines y objetivos educativos",0,0,0,0]
["MINEDUC-028-01-01 ","Reconocimiento de estudios realizados en el exterior\t",4547,0,0,0]
["MINEDUC-018-01-01","Rectificación de datos personales en documentos estudiantiles\t",2514,0,0,0]
["MINEDUC-025-02-01","Registro de directivas de organizaciones sociales sin fines de lucro con fines y objetivos educativos",700,0,0,0]
["MINEDUC-009-01-02","Registro de eventos estudiantiles organizados por las Instituciones Educativas\t",6,0,0,0]
["MINEDUC-009-01-01","Registro de excursiones o giras de observación internacional\t",0,0,0,0]
["MINEDUC-009-01-03 ","Registro de giras y excursiones para instituciones educativas en territorio nacional\t",0,0,0,0]
["MINEDUC-004-03-09 ","Renovación de autorización de funcionamiento de instituciones educativas fiscomisionales ",13,0,0,0]
["MINEDUC-004-03-11 ","Renovación de autorización de funcionamiento de instituciones educativas fiscomisionales extraordinarias ",0,0,0,0]
["MINEDUC-004-03-10 ","Renovación de autorización de funcionamiento de instituciones educativas particulares ",70,0,0,0]
["MINEDUC-004-03-12","Renovación de autorización de funcionamiento de instituciones educativas particulares extraordinarias ",0,0,0,0]
["MINEDUC-004-03-14 ","Renovación de autorización de funcionamiento de las instituciones fiscomisionales con menos de 120 estudiantes",0,0,0,0]
["MINEDUC-004-03-13 ","Renovación de autorización de funcionamiento de las instituciones particulares con menos de 120 estudiantes",0,0,0,0]

{"sheet":"COSTO ADMINISTRACIÓN PÚBLICA","index":3,"n_rows":58,"n_cols":9,"rows_kept":58,"cut":false,"hidden":false,"merged":[[0,0,0,5],[1,0,1,5],[3,0,4,0],[3,1,4,1],[3,2,3,4],[3,5,4,5]]}
["PRIORIZACIÓN DE TRÁMITES ADMINISTRATIVOS"]
["COSTOS PARA LA ADMINISTRACIÓN PÚBLICA"]
[]
["IDENTIFICADOR","TRÁMITE","INSUMOS PARA COSTO",null,null,"COSTO PARA LA ADM. PÚBLICA",null,"SBU",400]
[null,null,"TIEMPO (HORAS)","COSTO PERSONAL","COSTO RECURSOS"]
["MINEDUC-010-01-01","Aceptación de Tercera Matrícula\t",96,{"$f":"C6*$I$4/160","v":240},2,{"$f":"D6+E6","v":242}]
["MINEDUC-016-01-01 ","Apelaciones en última instancia para revisión de notas y exámenes\t",128,{"$f":"C7*$I$4/160","v":320},{"$f":"+E6","v":2},{"$f":"D7+E7","v":322}]
["MINEDUC-027-01-01","Aplicación de Exámenes de ubicación para acceder al sistema educativo nacional",128,320,{"$f":"+E7","v":2},322]
["MINEDUC-025-03-01 ","Aprobación de reformas  estatutarias de organizaciones sociales con fines y objetivos educativos",128,320,2,322]
["MINEDUC-008-03-01 ","Aprobación para la ejecución de investigaciones en el sistema nacional de educación\t",128,320,2,322]
["MINEDUC-004-03-08","Autorización de creación y funcionamiento de una extensión educativa para instituciones educativas fiscomisionales",128,{"$f":"C11*$I$4/160","v":320},2,{"$f":"D11+E11","v":322}]
["MINEDUC-004-03-07 ","Autorización de creación y funcionamiento de una extensión educativa para instituciones educativas particulares",128,320,2,322]
["MINEDUC-004-03-06 ","Autorización de creación y funcionamiento, ampliación del servicio de centros de desarrollo integral para la primera infancia fiscomisionales",128,320,2,322]
["MINEDUC-004-03-05","Autorización de creación y funcionamiento, ampliación del servicio de centros de desarrollo integral para la primera infancia particulares",128,320,2,322]
["MINEDUC-004-03-04","Autorización de creación y funcionamiento, ampliación del servicio, cambio de domicilio de instituciones educativas fiscomisionales",128,320,2,322]
["MINEDUC-004-03-03 ","Autorización de creación y funcionamiento, ampliación del servicio, cambio de domicilio de instituciones educativas particulares",128,320,2,322]
["MINEDUC-004-05-01 ","Cambio de denominación de las Instituciones Educativas",128,320,2,322]
["MINEDUC-031-01-01 ","Cambio de Sostenimiento de Institución Particular a Fiscomisional",128,320,2,322]
["MINEDUC-031-01-02 ","Cambio de Sostenimiento de Institución Particular o Fiscomisional a Fiscal ",12.8,32,2,34]
["MINEDUC-036-01-01 ","Capacitación en gestión de riesgos",0.13600000000000001,0.34,2,2.34]
["MINEDUC-023-01-01 ","Certificación de promoción de Instituciones Educativas desaparecidas\t",0.66664000000000012,1.6666000000000003,2,3.6666000000000003]
["MINEDUC-004-03-01 ","Cierre voluntario de funcionamiento de Instituciones Educativas Particulares y fiscomisionales ",0.13600000000000001,0.34,2,2.34]
["MINEDUC-025-01-01 ","Concesión de Personalidad Jurídica y aprobación de estatuto de organizaciones sociales con fines y objetivos educativos",0.13600000000000001,0.34,2,2.34]
["MINEDUC-022-01-01","Consulta en línea de calificaciones parciales, quimestrales y finales de Instituciones Educativas Fiscales\t",96,240,2,242]
["MINEDUC-024-01-01 ","Consultas del certificado de Título de Bachiller\t",32,80,2,82]
["MINEDUC-013-01-01 ","Copia certificada de actas de grado de estudiantes de Instituciones educativas desaparecidas\t",19.200000000000003,48.000000000000007,2,50.000000000000007]
["MINEDUC-033-01-01","Denuncias por connotación sexual, psicológica, física y otras relacionadas en los establecimientos educativos del país",19.200000000000003,48.000000000000007,2,50.000000000000007]
["MINEDUC-025-05-01","Disolución voluntaria de organizaciones sociales con fines y objetivos educativos",19.200000000000003,48.000000000000007,2,50.000000000000007]
["MINEDUC-019-01-02 ","Emisión del Duplicado de Títulos de Instituciones Educativas desaparecidas\t",19.200000000000003,48.000000000000007,2,50.000000000000007]
["MINEDUC-019-01-01","Emisión del Duplicado de Títulos\t",19.200000000000003,48.000000000000007,2,50.000000000000007]
["MINEDUC-028-01-02","Homologación de títulos bachiller obtenidos en el exterior\t",19.200000000000003,48.000000000000007,2,50.000000000000007]
["MINEDUC-025-02-02 ","Inclusión y exclusión de miembros de organizaciones sociales con fines y objetivos educativos",6.4,16,2,18]
["MINEDUC-005-02-02 ","Inscripción a la oferta educativa extraordinaria básica elemental alfabetización modalidad semi presencial para población de 15 años en adelante",6.6664000000000001E-2,0.16666,2,2.1666599999999998]
["MINEDUC-005-02-01","Inscripción a la oferta educativa extraordinaria básica media postalfabetización modalidad semi presencial para población de 15 años en adelante\t",0.2,0.5,2,2.5]
["MINEDUC-005-01-01 ","Inscripción al sistema educativo fiscal",19.200000000000003,48.000000000000007,2,50.000000000000007]
["MINEDUC-005-01-02 ","Inscripción al sistema educativo fiscal a niñas, niños y adolescentes con necesidades educativas especiales asociadas a la discapacidad\t",19.200000000000003,48.000000000000007,2,50.000000000000007]
["MINEDUC-013-01-02","Legalización de Actas de Grado",19.200000000000003,48.000000000000007,2,50.000000000000007]
["MINEDUC-023-03-01","Legalización de certificación de cuadros quimestrales finales para estudiantes de Instituciones Educativas fiscales\t",19.200000000000003,48.000000000000007,2,50.000000000000007]
["MINEDUC-032-01-01","Legalización de documentos para el exterior\t",6.6664000000000001E-2,0.16666,2,2.1666599999999998]
["MINEDUC-012-01-02","Legalización de promociones de estudiantes de las Instituciones Educativas particulares, fiscomisionales y municipales",19.200000000000003,{"$f":"C40*$I$4/160","v":48.000000000000007},2,{"$f":"D40+E40","v":50.000000000000007}]
["MINEDUC-015-03-01 ","Matrícula posterior al inicio del año lectivo para estudiantes nacionales y extranjeros\t",6.4,16,2,18]
["MINEDUC-015-01-04 ","Pase o transferencia de estudiantes entre instituciones educativas fiscales",19.200000000000003,48.000000000000007,2,50.000000000000007]
["MINEDUC-015-01-01","Pase o transferencia para niños, niñas y adolescentes con necesidades educativas especiales asociadas a la discapacidad entre instituciones educativas fiscales especializadas",4.0000000000000008E-2,0.10000000000000002,2,2.1]
["MINEDUC-023-02-01","Promoción de estudiantes de instituciones educativas fiscales\t",96,240,2,242]
["MINEDUC-030-01-01 ","Proyectos de innovación curricular educativa",32,80,2,82]
["MINEDUC-025-04-01 ","Reactivación de organizaciones sociales con fines y objetivos educativos",32,80,2,82]
["MINEDUC-028-01-01 ","Reconocimiento de estudios realizados en el exterior\t",32,80,2,82]
["MINEDUC-018-01-01","Rectificación de datos personales en documentos estudiantiles\t",115.2,288,2,290]
["MINEDUC-025-02-01","Registro de directivas de organizaciones sociales sin fines de lucro con fines y objetivos educativos",19.200000000000003,48.000000000000007,2,50.000000000000007]
["MINEDUC-009-01-02","Registro de eventos estudiantiles organizados por las Instituciones Educativas\t",96,240,2,242]
["MINEDUC-009-01-01","Registro de excursiones o giras de observación internacional\t",9.6000000000000014,24.000000000000004,2,26.000000000000004]
["MINEDUC-009-01-03 ","Registro de giras y excursiones para instituciones educativas en territorio nacional\t",9.6000000000000014,24.000000000000004,2,26.000000000000004]
["MINEDUC-004-03-09 ","Renovación de autorización de funcionamiento de instituciones educativas fiscomisionales ",140.80000000000001,352.00000000000006,2,354.00000000000006]
["MINEDUC-004-03-11 ","Renovación de autorización de funcionamiento de instituciones educativas fiscomisionales extraordinarias ",96,240,2,242]
["MINEDUC-004-03-10 ","Renovación de autorización de funcionamiento de instituciones educativas particulares ",128,320,2,322]
["MINEDUC-004-03-12","Renovación de autorización de funcionamiento de instituciones educativas particulares extraordinarias ",12.8,{"$f":"C56*$I$4/160","v":32},2,{"$f":"D56+E56","v":34}]
["MINEDUC-004-03-14 ","Renovación de autorización de funcionamiento de las instituciones fiscomisionales con menos de 120 estudiantes",11.200000000000001,{"$f":"C57*$I$4/160","v":28},2,{"$f":"D57+E57","v":30}]
["MINEDUC-004-03-13 ","Renovación de autorización de funcionamiento de las instituciones particulares con menos de 120 estudiantes",11.200000000000001,28,2,30]

{"sheet":"RESUMEN DE COSTOS AP","index":4,"n_rows":57,"n_cols":4,"rows_kept":57,"cut":false,"hidden":false,"merged":[[0,0,0,5],[1,0,1,5]]}
["PRIORIZACIÓN DE TRÁMITES ADMINISTRATIVOS"]
["COSTOS PARA LA ADMINISTRACIÓN PÚBLICA"]
[]
["IDENTIFICADOR","TRÁMITE","COSTO PARA LA ADM. PÚBLICA","PUNTUACIÓN"]
["MINEDUC-010-01-01","Aceptación de Tercera Matrícula\t",50.000000000000007,5]
["MINEDUC-016-01-01 ","Apelaciones en última instancia para revisión de notas y exámenes\t",50.000000000000007,5]
["MINEDUC-027-01-01","Aplicación de Exámenes de ubicación para acceder al sistema educativo nacional",242,10]
["MINEDUC-025-03-01 ","Aprobación de reformas  estatutarias de organizaciones sociales con fines y objetivos educativos",82,10]
["MINEDUC-008-03-01 ","Aprobación para la ejecución de investigaciones en el sistema nacional de educación\t",242,10]
["MINEDUC-004-03-08","Autorización de creación y funcionamiento de una extensión educativa para instituciones educativas fiscomisionales",322,20]
["MINEDUC-004-03-07 ","Autorización de creación y funcionamiento de una extensión educativa para instituciones educativas particulares",322,20]
["MINEDUC-004-03-06 ","Autorización de creación y funcionamiento, ampliación del servicio de centros de desarrollo integral para la primera infancia fiscomisionales",322,20]
["MINEDUC-004-03-05","Autorización de creación y funcionamiento, ampliación del servicio de centros de desarrollo integral para la primera infancia particulares",322,20]
["MINEDUC-004-03-04","Autorización de creación y funcionamiento, ampliación del servicio, cambio de domicilio de instituciones educativas fiscomisionales",322,20]
["MINEDUC-004-03-03 ","Autorización de creación y funcionamiento, ampliación del servicio, cambio de domicilio de instituciones educativas particulares",322,20]
["MINEDUC-004-05-01 ","Cambio de denominación de las Instituciones Educativas",34,5]
["MINEDUC-031-01-01 ","Cambio de Sostenimiento de Institución Particular a Fiscomisional",242,10]
["MINEDUC-031-01-02 ","Cambio de Sostenimiento de Institución Particular o Fiscomisional a Fiscal ",322,20]
["MINEDUC-036-01-01 ","Capacitación en gestión de riesgos",30,5]
["MINEDUC-023-01-01 ","Certificación de promoción de Instituciones Educativas desaparecidas\t",50.000000000000007,5]
["MINEDUC-004-03-01 ","Cierre voluntario de funcionamiento de Instituciones Educativas Particulares y fiscomisionales ",242,10]
["MINEDUC-025-01-01 ","Concesión de Personalidad Jurídica y aprobación de estatuto de organizaciones sociales con fines y objetivos educativos",242,10]
["MINEDUC-022-01-01","Consulta en línea de calificaciones parciales, quimestrales y finales de Instituciones Educativas Fiscales\t",2.1666599999999998,5]
["MINEDUC-024-01-01 ","Consultas del certificado de Título de Bachiller\t",2.1,5]
["MINEDUC-013-01-01 ","Copia certificada de actas de grado de estudiantes de Instituciones educativas desaparecidas\t",50.000000000000007,5]
["MINEDUC-033-01-01","Denuncias por connotación sexual, psicológica, física y otras relacionadas en los establecimientos educativos del país",30,5]
["MINEDUC-025-05-01","Disolución voluntaria de organizaciones sociales con fines y objetivos educativos",50.000000000000007,5]
["MINEDUC-019-01-02 ","Emisión del Duplicado de Títulos de Instituciones Educativas desaparecidas\t",50.000000000000007,5]
["MINEDUC-019-01-01","Emisión del Duplicado de Títulos\t",50.000000000000007,5]
["MINEDUC-028-01-02","Homologación de títulos bachiller obtenidos en el exterior\t",26.000000000000004,5]
["MINEDUC-025-02-02 ","Inclusión y exclusión de miembros de organizaciones sociales con fines y objetivos educativos",82,10]
["MINEDUC-005-02-02 ","Inscripción a la oferta educativa extraordinaria básica elemental alfabetización modalidad semi presencial para población de 15 años en adelante",2.34,5]
["MINEDUC-005-02-01","Inscripción a la oferta educativa extraordinaria básica media postalfabetización modalidad semi presencial para población de 15 años en adelante\t",2.34,5]
["MINEDUC-005-01-01 ","Inscripción al sistema educativo fiscal",2.34,5]
["MINEDUC-005-01-02 ","Inscripción al sistema educativo fiscal a niñas, niños y adolescentes con necesidades educativas especiales asociadas a la discapacidad\t",3.6666000000000003,5]
["MINEDUC-013-01-02","Legalización de Actas de Grado",50.000000000000007,5]
["MINEDUC-023-03-01","Legalización de certificación de cuadros quimestrales finales para estudiantes de Instituciones Educativas fiscales\t",50.000000000000007,5]
["MINEDUC-032-01-01","Legalización de documentos para el exterior\t",34,5]
["MINEDUC-012-01-02","Legalización de promociones de estudiantes de las Instituciones Educativas particulares, fiscomisionales y municipales",50.000000000000007,5]
["MINEDUC-015-03-01 ","Matrícula posterior al inicio del año lectivo para estudiantes nacionales y extranjeros\t",2.5,5]
["MINEDUC-015-01-04 ","Pase o transferencia de estudiantes entre instituciones educativas fiscales",2.1666599999999998,5]
["MINEDUC-015-01-01","Pase o transferencia para niños, niñas y adolescentes con necesidades educativas especiales asociadas a la discapacidad entre instituciones educativas fiscales especializadas",18,5]
["MINEDUC-023-02-01","Promoción de estudiantes de instituciones educativas fiscales\t",18,5]
["MINEDUC-030-01-01 ","Proyectos de innovación curricular educativa",354.00000000000006,20]
["MINEDUC-025-04-01 ","Reactivación de organizaciones sociales con fines y objetivos educativos",290,20]
["MINEDUC-028-01-01 ","Reconocimiento de estudios realizados en el exterior\t",26.000000000000004,5]
["MINEDUC-018-01-01","Rectificación de datos personales en documentos estudiantiles\t",50.000000000000007,5]
["MINEDUC-025-02-01","Registro de directivas de organizaciones sociales sin fines de lucro con fines y objetivos educativos",82,10]
["MINEDUC-009-01-02","Registro de eventos estudiantiles organizados por las Instituciones Educativas\t",50.000000000000007,5]
["MINEDUC-009-01-01","Registro de excursiones o giras de observación internacional\t",82,10]
["MINEDUC-009-01-03 ","Registro de giras y excursiones para instituciones educativas en territorio nacional\t",50.000000000000007,5]
["MINEDUC-004-03-09 ","Renovación de autorización de funcionamiento de instituciones educativas fiscomisionales ",322,20]
["MINEDUC-004-03-11 ","Renovación de autorización de funcionamiento de instituciones educativas fiscomisionales extraordinarias ",322,20]
["MINEDUC-004-03-10 ","Renovación de autorización de funcionamiento de instituciones educativas particulares ",322,20]
["MINEDUC-004-03-12","Renovación de autorización de funcionamiento de instituciones educativas particulares extraordinarias ",322,20]
["MINEDUC-004-03-14 ","Renovación de autorización de funcionamiento de las instituciones fiscomisionales con menos de 120 estudiantes",322,20]
["MINEDUC-004-03-13 ","Renovación de autorización de funcionamiento de las instituciones particulares con menos de 120 estudiantes",322,20]

{"sheet":"AUXILIAR COSTO ADMINISTRACIÓN","index":5,"n_rows":20,"n_cols":3,"rows_kept":20,"cut":false,"hidden":true,"merged":[[1,1,1,2]]}
[]
["TRÁMITE:"]
["NO.","ACTIVIDAD","TIEMPO (HORAS)"]
[1]
[2]
[3]
[4]
[5]
[6]
[7]
[8]
[9]
[10]
[11]
[12]
[13]
[14]
[15]
[]
[null,"SUMATORIA ACTIVIDADES",{"$f":"SUM(C4:C19)","v":0}]

{"sheet":"TIEMPO DE RESPUESTA","index":6,"n_rows":57,"n_cols":4,"rows_kept":57,"cut":false,"hidden":false,"merged":[[0,0,0,3],[1,0,1,3]]}
["PRIORIZACIÓN DE TRÁMITES ADMINISTRATIVOS"]
["TIEMPO DE RESPUESTA"]
[]
["IDENTIFICADOR","TRÁMITE","TIEMPO RESPUESTA (horas laborables)","PUNTUACIÓN"]
["MINEDUC-010-01-01","Aceptación de Tercera Matrícula\t",24,0]
["MINEDUC-016-01-01 ","Apelaciones en última instancia para revisión de notas y exámenes\t",24,0]
["MINEDUC-027-01-01","Aplicación de Exámenes de ubicación para acceder al sistema educativo nacional",120,30]
["MINEDUC-025-03-01 ","Aprobación de reformas  estatutarias de organizaciones sociales con fines y objetivos educativos",40,0]
["MINEDUC-008-03-01 ","Aprobación para la ejecución de investigaciones en el sistema nacional de educación\t",120,30]
["MINEDUC-004-03-08","Autorización de creación y funcionamiento de una extensión educativa para instituciones educativas fiscomisionales",160,30]
["MINEDUC-004-03-07 ","Autorización de creación y funcionamiento de una extensión educativa para instituciones educativas particulares",160,30]
["MINEDUC-004-03-06 ","Autorización de creación y funcionamiento, ampliación del servicio de centros de desarrollo integral para la primera infancia fiscomisionales",160,30]
["MINEDUC-004-03-05","Autorización de creación y funcionamiento, ampliación del servicio de centros de desarrollo integral para la primera infancia particulares",160,30]
["MINEDUC-004-03-04","Autorización de creación y funcionamiento, ampliación del servicio, cambio de domicilio de instituciones educativas fiscomisionales",160,30]
["MINEDUC-004-03-03 ","Autorización de creación y funcionamiento, ampliación del servicio, cambio de domicilio de instituciones educativas particulares",160,30]
["MINEDUC-004-05-01 ","Cambio de denominación de las Instituciones Educativas",16,0]
["MINEDUC-031-01-01 ","Cambio de Sostenimiento de Institución Particular a Fiscomisional",120,30]
["MINEDUC-031-01-02 ","Cambio de Sostenimiento de Institución Particular o Fiscomisional a Fiscal ",160,30]
["MINEDUC-036-01-01 ","Capacitación en gestión de riesgos",14,0]
["MINEDUC-023-01-01 ","Certificación de promoción de Instituciones Educativas desaparecidas\t",24,0]
["MINEDUC-004-03-01 ","Cierre voluntario de funcionamiento de Instituciones Educativas Particulares y fiscomisionales ",120,30]
["MINEDUC-025-01-01 ","Concesión de Personalidad Jurídica y aprobación de estatuto de organizaciones sociales con fines y objetivos educativos",120,30]
["MINEDUC-022-01-01","Consulta en línea de calificaciones parciales, quimestrales y finales de Instituciones Educativas Fiscales\t",8.3330000000000001E-2,0]
["MINEDUC-024-01-01 ","Consultas del certificado de Título de Bachiller\t",0.05,0]
["MINEDUC-013-01-01 ","Copia certificada de actas de grado de estudiantes de Instituciones educativas desaparecidas\t",24,0]
["MINEDUC-033-01-01","Denuncias por connotación sexual, psicológica, física y otras relacionadas en los establecimientos educativos del país",14,0]
["MINEDUC-025-05-01","Disolución voluntaria de organizaciones sociales con fines y objetivos educativos",24,0]
["MINEDUC-019-01-02 ","Emisión del Duplicado de Títulos de Instituciones Educativas desaparecidas\t",24,0]
["MINEDUC-019-01-01","Emisión del Duplicado de Títulos\t",24,0]
["MINEDUC-028-01-02","Homologación de títulos bachiller obtenidos en el exterior\t",12,0]
["MINEDUC-025-02-02 ","Inclusión y exclusión de miembros de organizaciones sociales con fines y objetivos educativos",40,0]
["MINEDUC-005-02-02 ","Inscripción a la oferta educativa extraordinaria básica elemental alfabetización modalidad semi presencial para población de 15 años en adelante",0.17,0]
["MINEDUC-005-02-01","Inscripción a la oferta educativa extraordinaria básica media postalfabetización modalidad semi presencial para población de 15 años en adelante\t",0.17,0]
["MINEDUC-005-01-01 ","Inscripción al sistema educativo fiscal",0.17,0]
["MINEDUC-005-01-02 ","Inscripción al sistema educativo fiscal a niñas, niños y adolescentes con necesidades educativas especiales asociadas a la discapacidad\t",0.83330000000000004,0]
["MINEDUC-013-01-02","Legalización de Actas de Grado",24,0]
["MINEDUC-023-03-01","Legalización de certificación de cuadros quimestrales finales para estudiantes de Instituciones Educativas fiscales\t",24,0]
["MINEDUC-032-01-01","Legalización de documentos para el exterior\t",16,0]
["MINEDUC-012-01-02","Legalización de promociones de estudiantes de las Instituciones Educativas particulares, fiscomisionales y municipales",24,0]
["MINEDUC-015-03-01 ","Matrícula posterior al inicio del año lectivo para estudiantes nacionales y extranjeros\t",0.25,0]
["MINEDUC-015-01-04 ","Pase o transferencia de estudiantes entre instituciones educativas fiscales",8.3330000000000001E-2,0]
["MINEDUC-015-01-01","Pase o transferencia para niños, niñas y adolescentes con necesidades educativas especiales asociadas a la discapacidad entre instituciones educativas fiscales especializadas",8,0]
["MINEDUC-023-02-01","Promoción de estudiantes de instituciones educativas fiscales\t",8,0]
["MINEDUC-030-01-01 ","Proyectos de innovación curricular educativa",176,30]
["MINEDUC-025-04-01 ","Reactivación de organizaciones sociales con fines y objetivos educativos",144,30]
["MINEDUC-028-01-01 ","Reconocimiento de estudios realizados en el exterior\t",12,0]
["MINEDUC-018-01-01","Rectificación de datos personales en documentos estudiantiles\t",24,0]
["MINEDUC-025-02-01","Registro de directivas de organizaciones sociales sin fines de lucro con fines y objetivos educativos",40,0]
["MINEDUC-009-01-02","Registro de eventos estudiantiles organizados por las Instituciones Educativas\t",24,0]
["MINEDUC-009-01-01","Registro de excursiones o giras de observación internacional\t",40,0]
["MINEDUC-009-01-03 ","Registro de giras y excursiones para instituciones educativas en territorio nacional\t",24,0]
["MINEDUC-004-03-09 ","Renovación de autorización de funcionamiento de instituciones educativas fiscomisionales ",160,30]
["MINEDUC-004-03-11 ","Renovación de autorización de funcionamiento de instituciones educativas fiscomisionales extraordinarias ",160,30]
["MINEDUC-004-03-10 ","Renovación de autorización de funcionamiento de instituciones educativas particulares ",160,30]
["MINEDUC-004-03-12","Renovación de autorización de funcionamiento de instituciones educativas particulares extraordinarias ",160,30]
["MINEDUC-004-03-14 ","Renovación de autorización de funcionamiento de las instituciones fiscomisionales con menos de 120 estudiantes",160,30]
["MINEDUC-004-03-13 ","Renovación de autorización de funcionamiento de las instituciones particulares con menos de 120 estudiantes",160,30]

{"sheet":"CANAL ATENCIÓN","index":7,"n_rows":57,"n_cols":12,"rows_kept":57,"cut":false,"hidden":false,"merged":[[0,0,0,3],[1,0,1,3]]}
["PRIORIZACIÓN DE TRÁMITES ADMINISTRATIVOS"]
["CANAL DE ATENCIÓN"]
[null,null,null,null,null,null,null,null,"Totalmente en Línea",null,null,0]
["IDENTIFICADOR","TRÁMITE","CANAL ATENCIÓN","PUNTUACIÓN",null,null,null,null,"No se completa totalmente en línea.",null,null,10]
["MINEDUC-010-01-01","Aceptación de Tercera Matrícula\t","No se completa totalmente en línea.",{"$f":"IF(ISBLANK(C5),\"\",IF(C5=\"Totalmente en línea\",0,IF(C5=\"Inicia en línea\",6,10)))","v":10}]
["MINEDUC-016-01-01 ","Apelaciones en última instancia para revisión de notas y exámenes\t","No se completa totalmente en línea.",10]
["MINEDUC-027-01-01","Aplicación de Exámenes de ubicación para acceder al sistema educativo nacional","No se completa totalmente en línea.",10]
["MINEDUC-025-03-01 ","Aprobación de reformas  estatutarias de organizaciones sociales con fines y objetivos educativos","No se completa totalmente en línea.",10]
["MINEDUC-008-03-01 ","Aprobación para la ejecución de investigaciones en el sistema nacional de educación\t","Totalmente en Línea",0]
["MINEDUC-004-03-08","Autorización de creación y funcionamiento de una extensión educativa para instituciones educativas fiscomisionales","No se completa totalmente en línea.",10]
["MINEDUC-004-03-07 ","Autorización de creación y funcionamiento de una extensión educativa para instituciones educativas particulares","No se completa totalmente en línea.",10]
["MINEDUC-004-03-06 ","Autorización de creación y funcionamiento, ampliación del servicio de centros de desarrollo integral para la primera infancia fiscomisionales","No se completa totalmente en línea.",10]
["MINEDUC-004-03-05","Autorización de creación y funcionamiento, ampliación del servicio de centros de desarrollo integral para la primera infancia particulares","No se completa totalmente en línea.",10]
["MINEDUC-004-03-04","Autorización de creación y funcionamiento, ampliación del servicio, cambio de domicilio de instituciones educativas fiscomisionales","Totalmente en Línea",0]
["MINEDUC-004-03-03 ","Autorización de creación y funcionamiento, ampliación del servicio, cambio de domicilio de instituciones educativas particulares","No se completa totalmente en línea.",10]
["MINEDUC-004-05-01 ","Cambio de denominación de las Instituciones Educativas","Totalmente en Línea",0]
["MINEDUC-031-01-01 ","Cambio de Sostenimiento de Institución Particular a Fiscomisional","No se completa totalmente en línea.",10]
["MINEDUC-031-01-02 ","Cambio de Sostenimiento de Institución Particular o Fiscomisional a Fiscal ","No se completa totalmente en línea.",10]
["MINEDUC-036-01-01 ","Capacitación en gestión de riesgos","Totalmente en Línea",0]
["MINEDUC-023-01-01 ","Certificación de promoción de Instituciones Educativas desaparecidas\t","No se completa totalmente en línea.",10]
["MINEDUC-004-03-01 ","Cierre voluntario de funcionamiento de Instituciones Educativas Particulares y fiscomisionales ","No se completa totalmente en línea.",10]
["MINEDUC-025-01-01 ","Concesión de Personalidad Jurídica y aprobación de estatuto de organizaciones sociales con fines y objetivos educativos","No se completa totalmente en línea.",10]
["MINEDUC-022-01-01","Consulta en línea de calificaciones parciales, quimestrales y finales de Instituciones Educativas Fiscales\t","Totalmente en Línea",0]
["MINEDUC-024-01-01 ","Consultas del certificado de Título de Bachiller\t","Totalmente en Línea",0]
["MINEDUC-013-01-01 ","Copia certificada de actas de grado de estudiantes de Instituciones educativas desaparecidas\t","Totalmente en Línea",0]
["MINEDUC-033-01-01","Denuncias por connotación sexual, psicológica, física y otras relacionadas en los establecimientos educativos del país","Totalmente en Línea",0]
["MINEDUC-025-05-01","Disolución voluntaria de organizaciones sociales con fines y objetivos educativos","No se completa totalmente en línea.",10]
["MINEDUC-019-01-02 ","Emisión del Duplicado de Títulos de Instituciones Educativas desaparecidas\t","No se completa totalmente en línea.",10]
["MINEDUC-019-01-01","Emisión del Duplicado de Títulos\t","No se completa totalmente en línea.",10]
["MINEDUC-028-01-02","Homologación de títulos bachiller obtenidos en el exterior\t","No se completa totalmente en línea.",10]
["MINEDUC-025-02-02 ","Inclusión y exclusión de miembros de organizaciones sociales con fines y objetivos educativos","No se completa totalmente en línea.",10]
["MINEDUC-005-02-02 ","Inscripción a la oferta educativa extraordinaria básica elemental alfabetización modalidad semi presencial para población de 15 años en adelante","No se completa totalmente en línea.",10]
["MINEDUC-005-02-01","Inscripción a la oferta educativa extraordinaria básica media postalfabetización modalidad semi presencial para población de 15 años en adelante\t","No se completa totalmente en línea.",10]
["MINEDUC-005-01-01 ","Inscripción al sistema educativo fiscal","Totalmente en Línea",0]
["MINEDUC-005-01-02 ","Inscripción al sistema educativo fiscal a niñas, niños y adolescentes con necesidades educativas especiales asociadas a la discapacidad\t","Totalmente en Línea",0]
["MINEDUC-013-01-02","Legalización de Actas de Grado","No se completa totalmente en línea.",10]
["MINEDUC-023-03-01","Legalización de certificación de cuadros quimestrales finales para estudiantes de Instituciones Educativas fiscales\t","No se completa totalmente en línea.",{"$f":"IF(ISBLANK(C37),\"\",IF(C37=\"Totalmente en línea\",0,IF(C37=\"Inicia en línea\",6,10)))","v":10}]
["MINEDUC-032-01-01","Legalización de documentos para el exterior\t","No se completa totalmente en línea.",10]
["MINEDUC-012-01-02","Legalización de promociones de estudiantes de las Instituciones Educativas particulares, fiscomisionales y municipales","No se completa totalmente en línea.",10]
["MINEDUC-015-03-01 ","Matrícula posterior al inicio del año lectivo para estudiantes nacionales y extranjeros\t","Totalmente en Línea",0]
["MINEDUC-015-01-04 ","Pase o transferencia de estudiantes entre instituciones educativas fiscales","Totalmente en Línea",0]
["MINEDUC-015-01-01","Pase o transferencia para niños, niñas y adolescentes con necesidades educativas especiales asociadas a la discapacidad entre instituciones educativas fiscales especializadas","No se completa totalmente en línea.",10]
["MINEDUC-023-02-01","Promoción de estudiantes de instituciones educativas fiscales\t","Totalmente en Línea",0]
["MINEDUC-030-01-01 ","Proyectos de innovación curricular educativa","No se completa totalmente en línea.",10]
["MINEDUC-025-04-01 ","Reactivación de organizaciones sociales con fines y objetivos educativos","Totalmente en Línea",0]
["MINEDUC-028-01-01 ","Reconocimiento de estudios realizados en el exterior\t","No se completa totalmente en línea.",10]
["MINEDUC-018-01-01","Rectificación de datos personales en documentos estudiantiles\t","No se completa totalmente en línea.",10]
["MINEDUC-025-02-01","Registro de directivas de organizaciones sociales sin fines de lucro con fines y objetivos educativos","No se completa totalmente en línea.",10]
["MINEDUC-009-01-02","Registro de eventos estudiantiles organizados por las Instituciones Educativas\t","No se completa totalmente en línea.",10]
["MINEDUC-009-01-01","Registro de excursiones o giras de observación internacional\t","No se completa totalmente en línea.",10]
["MINEDUC-009-01-03 ","Registro de giras y excursiones para instituciones educativas en territorio nacional\t","No se completa totalmente en línea.",10]
["MINEDUC-004-03-09 ","Renovación de autorización de funcionamiento de instituciones educativas fiscomisionales ","No se completa totalmente en línea.",10]
["MINEDUC-004-03-11 ","Renovación de autorización de funcionamiento de instituciones educativas fiscomisionales extraordinarias ","No se completa totalmente en línea.",10]
["MINEDUC-004-03-10 ","Renovación de autorización de funcionamiento de instituciones educativas particulares ","No se completa totalmente en línea.",10]
["MINEDUC-004-03-12","Renovación de autorización de funcionamiento de instituciones educativas particulares extraordinarias ","No se completa totalmente en línea.",10]
["MINEDUC-004-03-14 ","Renovación de autorización de funcionamiento de las instituciones fiscomisionales con menos de 120 estudiantes","No se completa totalmente en línea.",10]
["MINEDUC-004-03-13 ","Renovación de autorización de funcionamiento de las instituciones particulares con menos de 120 estudiantes","No se completa totalmente en línea.",10]

{"sheet":"RESUMEN","index":8,"n_rows":56,"n_cols":25,"rows_kept":56,"cut":false,"hidden":false,"merged":[[1,9,1,10],[1,11,1,12],[1,13,2,13],[0,2,0,6],[0,7,0,12],[1,5,2,5],[1,6,2,6],[1,7,1,8],[1,0,2,0],[1,1,2,1],[1,2,2,2],[1,3,2,3],[1,4,2,4]]}
[null,null,"BÁSICOS",null,null,null,null,"ADICIONALES"]
["ID trámite","Nombre del trámite","Demanda","Quejas","Costo para administración","Tiempo de respuesta","Canal de atención","Necesidades ciudadanas",null,"Susceptibilidad a corrupción",null,"Volumen de devoluciones",null,"PUNTAJE TOTAL"]
[null,null,null,null,null,null,null,"Criterio","Puntuación","Criterio","Puntuación","Criterio","Puntuación",null,null,null,null,null,null,null,"demanda",0,3,6,10]
["MINEDUC-010-01-01","Aceptación de Tercera Matrícula\t",6,0,5,0,{"$f":"IF(ISBLANK(F4),\"\",IF(F4=\"Totalmente en línea\",0,IF(F4=\"Inicia en línea\",6,10)))","v":10},"NO",{"$f":"IF(H4=\"SI\",5,0)","v":0},"NO",{"$f":"IF(J4=\"SI\",10,0)","v":0},"NO",{"$f":"IF(L4=\"SI\",5,0)","v":0},{"$f":"SUM(C4:G4,I4,K4,M4)","v":21},null,null,null,null,null,null,"quejas",0,4,10]
["MINEDUC-016-01-01 ","Apelaciones en última instancia para revisión de notas y exámenes\t",3,0,5,0,10,"NO",{"$f":"IF(H5=\"SI\",5,0)","v":0},"NO",{"$f":"IF(J5=\"SI\",10,0)","v":0},"NO",{"$f":"IF(L5=\"SI\",5,0)","v":0},{"$f":"SUM(C5:G5,I5,K5,M5)","v":18},null,null,null,null,null,null,"cpa",5,10,20]
["MINEDUC-027-01-01","Aplicación de Exámenes de ubicación para acceder al sistema educativo nacional",10,0,10,30,10,"NO",0,"NO",0,"NO",0,60,null,null,null,null,null,null,"tr",0,30]
["MINEDUC-025-03-01 ","Aprobación de reformas  estatutarias de organizaciones sociales con fines y objetivos educativos",0,0,10,0,10,"NO",0,"NO",0,"NO",0,20,null,null,null,null,null,null,"ca",0,10]
["MINEDUC-008-03-01 ","Aprobación para la ejecución de investigaciones en el sistema nacional de educación\t",3,0,10,30,10,"NO",0,"NO",0,"NO",0,53,null,null,null,null,null,null,null,"SI","NO"]
["MINEDUC-004-03-08","Autorización de creación y funcionamiento de una extensión educativa para instituciones educativas fiscomisionales",0,0,20,30,10,"NO",0,"NO",0,"NO",0,60]
["MINEDUC-004-03-07 ","Autorización de creación y funcionamiento de una extensión educativa para instituciones educativas particulares",0,0,20,30,10,"NO",0,"NO",0,"NO",0,60]
["MINEDUC-004-03-06 ","Autorización de creación y funcionamiento, ampliación del servicio de centros de desarrollo integral para la primera infancia fiscomisionales",0,0,20,30,10,"NO",0,"NO",0,"NO",0,60]
["MINEDUC-004-03-05","Autorización de creación y funcionamiento, ampliación del servicio de centros de desarrollo integral para la primera infancia particulares",0,0,20,30,10,"NO",0,"NO",0,"NO",0,60]
["MINEDUC-004-03-04","Autorización de creación y funcionamiento, ampliación del servicio, cambio de domicilio de instituciones educativas fiscomisionales",3,0,20,30,10,"NO",0,"NO",0,"NO",0,63]
["MINEDUC-004-03-03 ","Autorización de creación y funcionamiento, ampliación del servicio, cambio de domicilio de instituciones educativas particulares",6,0,20,30,10,"NO",0,"NO",0,"NO",0,66]
["MINEDUC-004-05-01 ","Cambio de denominación de las Instituciones Educativas",3,0,5,0,10,"NO",0,"NO",0,"NO",0,18]
["MINEDUC-031-01-01 ","Cambio de Sostenimiento de Institución Particular a Fiscomisional",0,0,10,30,10,"NO",0,"NO",0,"NO",0,50]
["MINEDUC-031-01-02 ","Cambio de Sostenimiento de Institución Particular o Fiscomisional a Fiscal ",0,0,20,30,10,"NO",0,"NO",0,"NO",0,60]
["MINEDUC-036-01-01 ","Capacitación en gestión de riesgos",0,0,5,0,10,"NO",0,"NO",0,"NO",0,15]
["MINEDUC-023-01-01 ","Certificación de promoción de Instituciones Educativas desaparecidas\t",10,0,5,0,10,"NO",0,"NO",0,"NO",0,25]
["MINEDUC-004-03-01 ","Cierre voluntario de funcionamiento de Instituciones Educativas Particulares y fiscomisionales ",3,0,10,30,10,"NO",0,"NO",0,"NO",0,53]
["MINEDUC-025-01-01 ","Concesión de Personalidad Jurídica y aprobación de estatuto de organizaciones sociales con fines y objetivos educativos",3,0,10,30,10,"NO",0,"NO",0,"NO",0,53]
["MINEDUC-022-01-01","Consulta en línea de calificaciones parciales, quimestrales y finales de Instituciones Educativas Fiscales\t",0,0,5,0,10,"NO",0,"NO",0,"NO",0,15]
["MINEDUC-024-01-01 ","Consultas del certificado de Título de Bachiller\t",0,0,5,0,10,"NO",0,"NO",0,"NO",0,15]
["MINEDUC-013-01-01 ","Copia certificada de actas de grado de estudiantes de Instituciones educativas desaparecidas\t",0,0,5,0,10,"NO",0,"NO",0,"NO",0,15]
["MINEDUC-033-01-01","Denuncias por connotación sexual, psicológica, física y otras relacionadas en los establecimientos educativos del país",10,0,5,0,10,"NO",0,"NO",0,"NO",0,25]
["MINEDUC-025-05-01","Disolución voluntaria de organizaciones sociales con fines y objetivos educativos",6,0,5,0,10,"NO",0,"NO",0,"NO",0,21]
["MINEDUC-019-01-02 ","Emisión del Duplicado de Títulos de Instituciones Educativas desaparecidas\t",6,0,5,0,10,"NO",0,"NO",0,"NO",0,21]
["MINEDUC-019-01-01","Emisión del Duplicado de Títulos\t",10,0,5,0,10,"NO",0,"NO",0,"NO",0,25]
["MINEDUC-028-01-02","Homologación de títulos bachiller obtenidos en el exterior\t",6,0,5,0,10,"NO",0,"NO",0,"NO",0,21]
["MINEDUC-025-02-02 ","Inclusión y exclusión de miembros de organizaciones sociales con fines y objetivos educativos",0,0,10,0,10,"NO",0,"NO",0,"NO",0,20]
["MINEDUC-005-02-02 ","Inscripción a la oferta educativa extraordinaria básica elemental alfabetización modalidad semi presencial para población de 15 años en adelante",6,0,5,0,10,"NO",0,"NO",0,"NO",0,21]
["MINEDUC-005-02-01","Inscripción a la oferta educativa extraordinaria básica media postalfabetización modalidad semi presencial para población de 15 años en adelante\t",10,0,5,0,10,"NO",0,"NO",0,"NO",0,25]
["MINEDUC-005-01-01 ","Inscripción al sistema educativo fiscal",10,0,5,0,10,"NO",0,"NO",0,"NO",0,25]
["MINEDUC-005-01-02 ","Inscripción al sistema educativo fiscal a niñas, niños y adolescentes con necesidades educativas especiales asociadas a la discapacidad\t",3,0,5,0,10,"NO",0,"NO",0,"NO",0,18]
["MINEDUC-013-01-02","Legalización de Actas de Grado",10,0,5,0,10,"NO",0,"NO",0,"NO",0,25]
["MINEDUC-023-03-01","Legalización de certificación de cuadros quimestrales finales para estudiantes de Instituciones Educativas fiscales\t",10,0,5,0,{"$f":"IF(ISBLANK(F36),\"\",IF(F36=\"Totalmente en línea\",0,IF(F36=\"Inicia en línea\",6,10)))","v":10},"NO",0,"NO",0,"NO",0,25]
["MINEDUC-032-01-01","Legalización de documentos para el exterior\t",10,0,5,0,10,"NO",0,"NO",0,"NO",0,25]
["MINEDUC-012-01-02","Legalización de promociones de estudiantes de las Instituciones Educativas particulares, fiscomisionales y municipales",6,0,5,0,10,"NO",0,"NO",0,"NO",0,21]
["MINEDUC-015-03-01 ","Matrícula posterior al inicio del año lectivo para estudiantes nacionales y extranjeros\t",6,0,5,0,10,"NO",0,"NO",0,"NO",0,21]
["MINEDUC-015-01-04 ","Pase o transferencia de estudiantes entre instituciones educativas fiscales",3,0,5,0,10,"NO",0,"NO",0,"NO",0,18]
["MINEDUC-015-01-01","Pase o transferencia para niños, niñas y adolescentes con necesidades educativas especiales asociadas a la discapacidad entre instituciones educativas fiscales especializadas",6,0,5,0,10,"NO",0,"NO",0,"NO",0,21]
["MINEDUC-023-02-01","Promoción de estudiantes de instituciones educativas fiscales\t",0,0,5,0,10,"NO",0,"NO",0,"NO",0,15]
["MINEDUC-030-01-01 ","Proyectos de innovación curricular educativa",6,0,20,30,10,"NO",0,"NO",0,"NO",0,66]
["MINEDUC-025-04-01 ","Reactivación de organizaciones sociales con fines y objetivos educativos",0,0,20,30,10,"NO",0,"NO",0,"NO",0,60]
["MINEDUC-028-01-01 ","Reconocimiento de estudios realizados en el exterior\t",10,0,5,0,10,"NO",0,"NO",0,"NO",0,25]
["MINEDUC-018-01-01","Rectificación de datos personales en documentos estudiantiles\t",10,0,5,0,10,"NO",0,"NO",0,"NO",0,25]
["MINEDUC-025-02-01","Registro de directivas de organizaciones sociales sin fines de lucro con fines y objetivos educativos",6,0,10,0,10,"NO",0,"NO",0,"NO",0,26]
["MINEDUC-009-01-02","Registro de eventos estudiantiles organizados por las Instituciones Educativas\t",3,0,5,0,10,"NO",0,"NO",0,"NO",0,18]
["MINEDUC-009-01-01","Registro de excursiones o giras de observación internacional\t",0,0,10,0,10,"NO",0,"NO",0,"NO",0,20]
["MINEDUC-009-01-03 ","Registro de giras y excursiones para instituciones educativas en territorio nacional\t",0,0,5,0,10,"NO",0,"NO",0,"NO",0,15]
["MINEDUC-004-03-09 ","Renovación de autorización de funcionamiento de instituciones educativas fiscomisionales ",3,0,20,30,10,"NO",0,"NO",0,"NO",0,63]
["MINEDUC-004-03-11 ","Renovación de autorización de funcionamiento de instituciones educativas fiscomisionales extraordinarias ",0,0,20,30,10,"NO",0,"NO",0,"NO",0,60]
["MINEDUC-004-03-10 ","Renovación de autorización de funcionamiento de instituciones educativas particulares ",3,0,20,30,10,"NO",0,"NO",0,"NO",0,63]
["MINEDUC-004-03-12","Renovación de autorización de funcionamiento de instituciones educativas particulares extraordinarias ",0,0,20,30,10,"NO",0,"NO",0,"NO",0,60]
["MINEDUC-004-03-14 ","Renovación de autorización de funcionamiento de las instituciones fiscomisionales con menos de 120 estudiantes",0,0,20,30,10,"NO",0,"NO",0,"NO",0,60]
["MINEDUC-004-03-13 ","Renovación de autorización de funcionamiento de las instituciones particulares con menos de 120 estudiantes",0,0,20,30,10,"NO",0,"NO",0,"NO",0,60]

{"sheet":"MATRIZ PROPIA","index":9,"n_rows":55,"n_cols":7,"rows_kept":55,"cut":false,"hidden":true,"merged":[]}
[]
[]
[null,null,null,null,null,120,{"$f":"+F3*0.8","v":96}]
[null,null,null,null,null,160,{"$f":"+F4*0.8","v":128}]
[null,null,null,null,null,160,128]
[null,null,null,null,null,160,128]
[null,null,null,null,null,160,128]
[null,null,null,null,null,160,128]
[null,null,null,null,null,160,128]
[null,null,null,null,null,160,128]
[null,null,null,null,null,160,128]
[null,null,null,null,null,160,128]
[null,null,null,null,null,160,128]
[null,null,null,null,null,160,128]
[null,null,null,null,null,160,128]
[null,null,null,null,null,16,12.8]
[null,null,null,null,null,0.17,0.13600000000000001]
[null,null,null,null,null,0.83330000000000004,0.66664000000000012]
[null,null,null,null,null,0.17,0.13600000000000001]
[null,null,null,null,null,0.17,0.13600000000000001]
[null,null,null,null,null,120,96]
[null,null,null,null,null,40,32]
[null,null,null,null,null,24,19.200000000000003]
[null,null,null,null,null,24,19.200000000000003]
[null,null,null,null,null,24,19.200000000000003]
[null,null,null,null,null,24,19.200000000000003]
[null,null,null,null,null,24,19.200000000000003]
[null,null,null,null,null,24,19.200000000000003]
[null,null,null,null,null,8,6.4]
[null,null,null,null,null,8.3330000000000001E-2,6.6664000000000001E-2]
[null,null,null,null,null,0.25,0.2]
[null,null,null,null,null,24,19.200000000000003]
[null,null,null,null,null,24,19.200000000000003]
[null,null,null,null,null,24,19.200000000000003]
[null,null,null,null,null,24,19.200000000000003]
[null,null,null,null,null,8.3330000000000001E-2,6.6664000000000001E-2]
[null,null,null,null,null,24,19.200000000000003]
[null,null,null,null,null,8,6.4]
[null,null,null,null,null,24,19.200000000000003]
[null,null,null,null,null,0.05,4.0000000000000008E-2]
[null,null,null,null,null,120,96]
[null,null,null,null,null,40,32]
[null,null,null,null,null,40,32]
[null,null,null,null,null,40,32]
[null,null,null,null,null,144,115.2]
[null,null,null,null,null,24,19.200000000000003]
[null,null,null,null,null,120,96]
[null,null,null,null,null,12,9.6000000000000014]
[null,null,null,null,null,12,9.6000000000000014]
[null,null,null,null,null,176,140.80000000000001]
[null,null,null,null,null,120,96]
[null,null,null,null,null,160,128]
[null,null,null,null,null,16,12.8]
[null,null,null,null,null,14,11.200000000000001]
[null,null,null,null,null,14,11.200000000000001]